lending/lending_fUSD_20240603
["ID","MTS","AMOUNT","RATE_DAILY","PERIOD"]
[328445564,1717398639303,-162.47833665,0.0002839,2]
[328445565,1717398639312,-1275.83940264,0.00028391,2]
[328445566,1717398639321,-977.0,0.00028959,2]
[328445567,1717398639331,-358.0,0.00028959,2]
[328445568,1717398639340,-440.0,0.00028959,2]
[328445569,1717398639349,-186.39305473,0.00028959,2]
[328445570,1717398639391,-1079.60694527,0.00028959,2]
[328445572,1717398639401,-1546.0,0.00028959,2]
[328445574,1717398639410,-147.67719251,0.00028959,2]
[328445595,1717398641297,-467.32280749,0.00028959,2]
[328445596,1717398641306,-1638.06380547,0.00028959,2]
[328445597,1717398641318,-9.93619453,0.00028959,2]
[328445598,1717398641328,-757.75057798,0.00028959,2]
[328445599,1717398641340,-50.24942202,0.00028959,2]
[328445600,1717398641351,-150.0,0.00028959,2]
[328445601,1717398641360,-446.0,0.00028959,2]
[328445602,1717398641373,-2402.0,0.00028959,2]
[328445603,1717398641384,-1304.0,0.00028959,2]
[328445604,1717398641393,-216.0,0.00028959,2]
[328445605,1717398641403,-1499.62113756,0.00028959,2]
[328445606,1717398641415,-377.2800005,0.00028959,2]
[328445607,1717398642246,-390.99286194,0.00028959,2]
[328445608,1717398642256,-5774.0,0.00028996,2]
[328445609,1717398642265,-5147.0,0.00028996,2]
[328445610,1717398642275,-37998.0,0.00028996,2]
[328445611,1717398642285,-1470.0,0.00028996,2]
[328445612,1717398642295,-1064.0,0.00028996,2]
[328445613,1717398642305,-1350.0,0.00029,2]
[328445614,1717398642316,-250.0,0.00029193,2]
[328445615,1717398642326,-1000.0,0.00029268,2]
[328445616,1717398642336,-538.08,0.00029272,2]
[328445617,1717398642346,-250.0,0.00029314,2]
[328445618,1717398642356,-250.0,0.00029332,2]
[328445619,1717398642365,-219.07,0.00029335,2]
[328445620,1717398642375,-317.3,0.00029349,2]
[328445621,1717398642385,-465.62,0.0002975,2]
[328445622,1717398642395,-150.0,0.00029957,2]
[328445623,1717398642405,-150.0,0.00029957,2]
[328445624,1717398642414,-508.48347169,0.00029985,2]
[328445625,1717398642423,-150.0,0.00029986,2]
[328445626,1717398642433,-150.0,0.00029986,2]
[328445627,1717398642442,-150.0,0.00029986,2]
[328445629,1717398642451,-150.0,0.00029986,2]
[328445631,1717398642462,-150.0,0.00029986,2]
[328445633,1717398642471,-4806.62308069,0.0003,4]
[328445635,1717398642481,-280.03155084,0.0003,2]
[328445637,1717398642491,-500.0,0.00030136,4]
[328445638,1717398642500,-267.17,0.0003031,2]
[328445639,1717398642510,-500.0,0.0003041,4]
[328445640,1717398642520,-152.95805818,0.00030636,7]
[328445641,1717398642530,-500.0,0.00030684,4]
[328445642,1717398642539,-154.81924676,0.00030699,7]
[328445643,1717398642548,-152.95805818,0.0003076,7]
[328445644,1717398642558,-151.77973416,0.00030775,7]
[328445645,1717398642567,-151.0,0.00030946,7]
[328445646,1717398642577,-500.0,0.00030958,4]
[328445647,1717398642586,-1615.39946934,0.00031,4]
[328445648,1717398642595,-909.50372096,0.00031,4]
[328445649,1717398642604,-157.6292984,0.00031178,7]
[328445650,1717398642614,-592.0,0.00031232,4]
[328445651,1717398642625,-155.43161688,0.00031254,7]
[328445652,1717398642635,-34095.1246,0.00031306,2]
[328445653,1717398642644,-872.23,0.0003137,2]
[328445654,1717398642655,-416.78,0.0003137,2]
[328445655,1717398642664,-872.23,0.0003137,2]
[328445656,1717398642674,-416.78,0.0003137,2]
[328445657,1717398642683,-416.78,0.0003137,2]
[328445658,1717398642693,-872.23,0.0003137,2]
[328445659,1717398642702,-872.23,0.0003137,2]
[328445660,1717398642712,-416.78,0.0003137,2]
[328445661,1717398642722,-416.78,0.0003137,2]
[328445662,1717398642731,-872.23,0.0003137,2]
[328445663,1717398642740,-1058.38,0.0003137,2]
[328445664,1717398642750,-416.78,0.0003137,2]
[328445665,1717398642759,-416.78,0.0003137,2]
[328445666,1717398642769,-416.78,0.0003137,2]
[328445667,1717398642778,-404.01,0.0003137,2]
[328445668,1717398642789,-154.39556652,0.00031451,7]
[328445669,1717398642800,-157.6292984,0.00031602,7]
[328445670,1717398642809,-150.0,0.0003165,23]
[328445671,1717398642819,-154.39556652,0.00031666,7]
[328445672,1717398642828,-308.08,0.00031689,3]
[328445673,1717398642837,-151.0,0.00031714,7]
[328445674,1717398642846,-157.6292984,0.00031729,7]
[328445675,1717398642855,-159.94461867,0.00031764,7]
[328445676,1717398642865,-500.0,0.00031892,2]
[328445677,1717398642875,-200.0,0.00031892,2]
[328445678,1717398642885,-188.72102036,0.00031896,15]
[328445679,1717398642894,-400.0,0.000319,11]
[328445680,1717398642903,-150.34166832,0.00031904,7]
[328445681,1717398642913,-972.0,0.00031959,2]
[328445683,1717398642922,-358.0,0.00031959,2]
[328445684,1717398642931,-440.0,0.00031959,2]
[328445685,1717398642942,-1266.0,0.00031959,2]
[328445686,1717398642952,-1546.0,0.00031959,2]
[328445687,1717398642962,-615.0,0.00031959,2]
[328445688,1717398642975,-1648.0,0.00031959,2]
[328445689,1717398642985,-312.107,0.00031959,2]
[328445690,1717398642995,-446.0,0.00031959,2]
[328445691,1717398643004,-817.473,0.00031959,2]
[328445692,1717398643014,-1304.0,0.00031959,2]
[328445693,1717398643023,-161.15735838,0.00031975,3]
[328445694,1717398643033,-154.0,0.0003198,5]
[328445695,1717398643042,-269.32136,0.0003198,2]
[328445696,1717398643055,-5766.0,0.00031996,2]
[328445697,1717398643065,-5147.0,0.00031996,2]
[328445698,1717398643074,-37998.0,0.00031996,2]
[328445699,1717398643084,-1470.0,0.00031996,2]
[328445700,1717398643093,-1064.0,0.00031996,2]
[328445701,1717398643102,-800.0,0.00032,11]
[328445702,1717398643111,-2500.0,0.00032,2]
[328445703,1717398643120,-465.62,0.00032014,2]
[328445704,1717398643130,-188.72102036,0.00032041,15]
[328445705,1717398643139,-166.66666666,0.00032069,7]
[328445706,1717398643149,-156.56337884,0.00032099,15]
[328445707,1717398643158,-172.94471723,0.00032099,2]
[328445708,1717398643169,-1300.0,0.000321,11]
[328445709,1717398643178,-188.72102036,0.00032186,15]
[328445710,1717398643188,-360.63920563,0.00032197,2]
[328445711,1717398643199,-1038.26,0.00032197,4]
[328445712,1717398643210,-500.0,0.00032197,4]
[328445713,1717398643219,-500.0,0.00032198,4]
[328445714,1717398643229,-500.0,0.00032198,4]
[328445715,1717398643238,-500.0,0.00032198,4]
[328445716,1717398643247,-306.13799184,0.00032198,4]
[328445717,1717398643256,-500.0,0.00032198,4]
[328445718,1717398643266,-500.0,0.00032198,4]
[328445719,1717398643275,-500.0,0.00032198,4]
[328445720,1717398643284,-500.0,0.00032198,4]
[328445721,1717398643293,-500.0,0.00032198,4]
[328445722,1717398643302,-500.0,0.00032198,4]
[328445723,1717398643312,-2374.53,0.00032198,4]
[328445724,1717398643321,-500.0,0.00032198,4]
[328445725,1717398643330,-766.12,0.00032198,4]
[328445726,1717398643340,-500.0,0.00032198,4]
[328445727,1717398643349,-500.0,0.00032198,4]
[328445728,1717398643358,-562.28,0.00032198,4]
[328445729,1717398643367,-500.0,0.00032198,4]
[328445730,1717398643376,-527.28460083,0.00032198,4]
[328445731,1717398643385,-780.17,0.00032198,4]
[328445732,1717398643394,-500.0,0.00032198,4]
[328445733,1717398643403,-500.0,0.00032198,4]
[328445734,1717398643413,-500.0,0.00032198,4]
[328445735,1717398643422,-516.83843478,0.00032198,4]
[328445736,1717398643432,-100000.0,0.00032199,2]
[328445737,1717398643441,-1700.0,0.000322,11]
[328445738,1717398643450,-345.0,0.000322,5]
[328445739,1717398643461,-160.0,0.000322,5]
[328445740,1717398643471,-325.0218728,0.000322,2]
[328445741,1717398643480,-150.0,0.000322,7]
[328445742,1717398643489,-156.56337876,0.00032237,15]
[328445743,1717398643499,-166.48,0.00032255,2]
[328445744,1717398643508,-11648.79152294,0.00032266,2]
[328445745,1717398643523,-164.85451782,0.00032297,2]
[328445746,1717398643537,-4557.61428391,0.00032297,2]
[328445747,1717398643546,-3333.63764674,0.00032298,2]
[328445748,1717398643556,-500.0,0.00032298,2]
[328445749,1717398643566,-289.56052644,0.00032298,2]
[328445750,1717398643575,-301.67923279,0.00032298,2]
[328445751,1717398643585,-500.0,0.00032298,2]
[328445752,1717398643594,-500.0,0.00032298,2]
[328445753,1717398643604,-234.1299583,0.00032298,2]
[328445754,1717398643614,-1311.4088039,0.00032298,2]
[328445755,1717398643623,-18124.4226752,0.00032298,2]
[328445756,1717398643633,-39349.82125076,0.00032299,4]
[328445757,1717398643648,-528.18244504,0.00032299,4]
[328445759,1717398644298,-1710.07978911,0.00032299,4]
[328445761,1717398644310,-8035.90253916,0.00032299,4]
[328445770,1717398644388,-108791.37344324,0.00032299,4]
[328445772,1717398644400,-2097.28983264,0.00032299,4]
[328445775,1717398644412,-5995.85119762,0.00032299,4]
[328445777,1717398644423,-1920.57023727,0.00032299,4]
[328445779,1717398644435,-516.14816388,0.00032299,4]
[328445828,1717398646160,-10286.38635922,0.00032299,4]
[328445840,1717398646755,-6074.55805294,0.00032299,4]
[328445842,1717398646767,-64279.72206628,0.00032299,4]
[328445845,1717398646779,-493.56414046,0.00032299,4]
[328445847,1717398646790,-700.0,0.00032299,4]
[328445849,1717398646802,-428.985425,0.00032299,4]
[328445945,1717398661718,697.848418,0.00019999,2]
[328445947,1717398669163,506.11774641,0.00017259,2]
[328445948,1717398688713,855.65609833,0.00017259,2]
[328445949,1717398690260,53.46376203,0.00031399,120]
[328445950,1717398690294,210.94623797,0.00031399,120]
[328445952,1717398727057,165.71,0.0003187,120]
[328445956,1717399003425,340.7282067,0.0002,2]
[328445960,1717399354162,431.73079614,0.00017259,2]
[328445961,1717399354402,1641.4424551,0.00017259,2]
[328445973,1717399589600,155.0,0.00017259,2]
[328445975,1717399727898,32892.18834546,0.00017259,2]
[328445979,1717399832662,-1214.3568188,0.000201,2]
[328445980,1717399832672,-643.0,0.000219,2]
[328445981,1717399832681,-184.73,0.00021918,2]
[328445982,1717399832691,-163.26,0.00023559,2]
[328445983,1717399832701,-154.83,0.00024384,2]
[328445984,1717399832710,-156.46,0.00024384,2]
[328445985,1717399832719,-181.25267961,0.00024384,2]
[328446051,1717399838484,-318.73732039,0.00024384,2]
[328446052,1717399838494,-643.41512651,0.000247,2]
[328446053,1717399838503,-769.74143905,0.00025,2]
[328446054,1717399838513,-600.0,0.00025,2]
[328446055,1717399838523,-1250.0,0.00025,2]
[328446056,1717399838533,-433.03,0.00027618,2]
[328446057,1717399838543,-1976.0,0.000283,3]
[328446058,1717399838552,-4164.3736878,0.00029,2]
[328446059,1717399838562,-163.26,0.00029449,2]
[328446060,1717399838571,-219.07,0.0002945,2]
[328446061,1717399838580,-250.0,0.00029483,2]
[328446062,1717399838590,-250.0,0.00029488,2]
[328446063,1717399838600,-168.33,0.00029488,2]
[328446064,1717399838610,-1000.0,0.000295,2]
[328446065,1717399838619,-48.83323625,0.00029502,2]
[328446066,1717399838631,-201.16676375,0.00029502,2]
[328446067,1717399838640,-2751.0,0.00029506,2]
[328446068,1717399838649,-433.03,0.00029882,2]
[328446069,1717399838659,-151.245011,0.00029945,2]
[328446070,1717399838668,-167.212512,0.00029945,2]
[328446071,1717399838678,-186.658462,0.00029945,2]
[328446072,1717399838687,-620.638219,0.00029945,2]
[328446073,1717399838697,-618.6251,0.0003,2]
[328446074,1717399838707,-2670.34615594,0.00030215,4]
[328446075,1717399838716,-1266.0,0.00030216,2]
[328446076,1717399838727,-440.0,0.00030216,2]
[328446077,1717399838736,-258.0,0.00030216,2]
[328446078,1717399838745,-1648.0,0.00030216,2]
[328446079,1717399838755,-611.0,0.00030216,2]
[328446080,1717399838764,-439.0,0.00030216,2]
[328446081,1717399838774,-394.033,0.00030216,2]
[328446082,1717399838783,-945.64477631,0.00030216,2]
[328446083,1717399838799,-3184.98652835,0.00030216,2]
[328446107,1717399843590,-600.15469534,0.00030216,2]
[328446108,1717399843599,-1470.0,0.00030216,2]
[328446109,1717399843608,-4832.6673515,0.00030216,2]
[328446110,1717399844604,-16437.95971475,0.00030216,2]
[328446111,1717399844619,-1904.32753892,0.00030216,2]
[328446112,1717399844630,-2675.57539483,0.00030216,2]
[328446113,1717399844639,-620.638219,0.00030319,2]
[328446114,1717399844649,-151.245011,0.00030444,2]
[328446115,1717399844658,-620.638219,0.00030693,2]
[328446116,1717399844667,-157.6292984,0.00030737,7]
[328446117,1717399844677,-152.95805818,0.00030768,7]
[328446118,1717399844686,-166.66344156,0.00030864,7]
[328446119,1717399844696,-151.245011,0.00030943,2]
[328446120,1717399844705,-755.57359723,0.00030946,2]
[328446121,1717399844715,-159.94461868,0.00031012,7]
[328446122,1717399844724,-620.638219,0.00031068,2]
[328446123,1717399844735,-154.39556652,0.00031089,7]
[328446124,1717399844745,-154.39556652,0.00031094,7]
[328446125,1717399844754,-154.39556652,0.00031262,7]
[328446126,1717399844763,-154.39556652,0.00031391,7]
[328446127,1717399844773,-152.95805818,0.00031392,7]
[328446128,1717399844783,-165.13089285,0.00031398,15]
[328446129,1717399844792,-172.94471723,0.00031399,2]
[328446130,1717399844802,-419.56921842,0.00031415,3]
[328446131,1717399844811,-151.15371934,0.00031415,2]
[328446132,1717399844820,-156.46,0.00031421,2]
[328446133,1717399844830,-167.212512,0.00031442,2]
[328446134,1717399844839,-151.245011,0.00031442,2]
[328446135,1717399844848,-620.638219,0.00031442,2]
[328446136,1717399844857,-154.16880432,0.00031447,7]
[328446137,1717399844867,-174.2775813,0.00031452,2]
[328446138,1717399844877,-264.94138994,0.00031477,2]
[328446139,1717399844886,-254.5696381,0.00031477,6]
[328446140,1717399844895,-1407.92035803,0.00031477,2]
[328446141,1717399844905,-2195.28029624,0.00031477,2]
[328446142,1717399844915,-240.0932064,0.00031477,2]
[328446143,1717399844924,-150.0,0.00031479,7]
[328446145,1717399844933,-279.15751175,0.00031479,7]
[328446146,1717399844943,-150.0,0.00031479,7]
[328446148,1717399844952,-150.0,0.00031479,7]
[328446150,1717399844961,-285.0,0.0003148,15]
[328446152,1717399844970,-154.81924676,0.00031488,7]
[328446155,1717399844981,-150.5,0.0003149,15]
[328446157,1717399844990,-152.71,0.0003149,2]
[328446159,1717399845000,-152.71,0.0003149,2]
[328446161,1717399845010,-152.71,0.0003149,2]
[328446163,1717399845019,-152.71,0.0003149,2]
[328446165,1717399845028,-152.71,0.0003149,2]
[328446167,1717399845037,-152.71,0.0003149,2]
[328446169,1717399845047,-152.71,0.0003149,2]
[328446171,1717399845057,-152.71,0.0003149,2]
[328446173,1717399845067,-152.71,0.0003149,2]
[328446175,1717399845077,-152.71,0.0003149,2]
[328446177,1717399845089,-152.71,0.0003149,2]
[328446179,1717399845099,-152.71,0.0003149,2]
[328446181,1717399845108,-152.71,0.0003149,2]
[328446183,1717399845117,-152.71,0.0003149,2]
[328446185,1717399845127,-152.71,0.0003149,2]
[328446187,1717399845136,-152.71,0.0003149,2]
[328446189,1717399845146,-152.71,0.0003149,2]
[328446191,1717399845155,-152.71,0.0003149,2]
[328446193,1717399845165,-152.71,0.0003149,2]
[328446195,1717399845174,-152.71,0.0003149,2]
[328446197,1717399845184,-152.71,0.0003149,2]
[328446199,1717399845193,-152.71,0.0003149,2]
[328446201,1717399845203,-152.71,0.0003149,2]
[328446203,1717399845212,-152.71,0.0003149,2]
[328446205,1717399845221,-77962.8841515,0.00031497,2]
[328446207,1717399845231,-2181.29187519,0.00031498,10]
[328446209,1717399845240,-500.0,0.00031498,4]
[328446211,1717399845249,-500.0,0.00031498,4]
[328446213,1717399845258,-157.03865489,0.00031498,4]
[328446215,1717399845267,-500.0,0.00031498,4]
[328446217,1717399845276,-500.0,0.00031498,4]
[328446219,1717399845285,-500.0,0.00031498,4]
[328446221,1717399845295,-500.0,0.00031498,4]
[328446223,1717399845304,-2275.6,0.00031498,4]
[328446225,1717399845313,-500.0,0.00031498,4]
[328446227,1717399845323,-1581.2669112,0.00031498,4]
[328446229,1717399845333,-500.0,0.00031498,4]
[328446231,1717399845346,-734.2,0.00031498,4]
[328446233,1717399845355,-995.0,0.00031498,4]
[328446235,1717399845364,-500.0,0.00031498,4]
[328446237,1717399845375,-500.0,0.00031498,4]
[328446239,1717399845384,-500.0,0.00031498,4]
[328446241,1717399845393,-538.85,0.00031498,4]
[328446243,1717399845402,-500.0,0.00031498,4]
[328446245,1717399845412,-783.74,0.00031498,4]
[328446247,1717399845422,-500.0,0.00031498,4]
[328446263,1717399845593,-500.0,0.00031498,4]
[328446265,1717399845603,-500.0,0.00031498,4]
[328446267,1717399845613,-500.0,0.00031498,4]
[328446269,1717399845622,-500.0,0.00031498,4]
[328446271,1717399845631,-161564.86032306,0.00031499,4]
[328446277,1717399845677,-39777.55925756,0.00031499,4]
[328446279,1717399845687,-300.0,0.00031499,10]
[328446281,1717399845696,-300.0,0.00031499,10]
[328446283,1717399845706,-300.0,0.00031499,10]
[328446285,1717399845715,-300.0,0.00031499,10]
[328446287,1717399845725,-540.50376983,0.00031499,2]
[328446289,1717399845735,-286.78630768,0.00031499,4]
[328446291,1717399845744,-500.0,0.00031499,4]
[328446293,1717399845754,-322.06189047,0.00031499,4]
[328446295,1717399845763,-500.0,0.00031499,4]
[328446297,1717399845773,-500.0,0.00031499,4]
[328446299,1717399845783,-150.0,0.00031499,7]
[328446301,1717399845792,-150.0,0.00031499,7]
[328446303,1717399845801,-150.0,0.00031499,7]
[328446305,1717399845810,-150.0,0.00031499,7]
[328446307,1717399845819,-155.2858098,0.00031499,7]
[328446309,1717399845828,-157.0,0.000315,5]
[328446310,1717399845837,-162889.80296432,0.000315,11]
[328446315,1717399845873,-500.0,0.00031498,4]
[328446317,1717399845882,-13013.18904905,0.000315,11]
[328446319,1717399845892,-11210.05890197,0.000315,5]
[328446321,1717399845903,-1445.73721944,0.000315,5]
[328446324,1717399845914,-1214.3568188,0.000315,5]
[328446410,1717399846701,-654579.02440042,0.000315,5]
[328446414,1717399846732,-1693.0736497,0.000315,5]
[328446416,1717399846745,-2040.27542136,0.000315,5]
[328446418,1717399846756,-1524.70016138,0.000315,5]
[328446508,1717399847965,500.0,0.00031,30]
[328446584,1717399848882,500.0,0.00031,30]
[328446786,1717399850534,-358.0,0.00029979,2]
[328446789,1717399850543,-258.06314314,0.00031498,4]
[328446793,1717399850555,-241.93685686,0.00031498,4]
[328446796,1717399850564,-500.0,0.00031498,4]
[328446798,1717399850574,-86.40690114,0.00031498,4]
[328446803,1717399850585,-413.59309886,0.00031498,4]
[328446806,1717399850594,-500.0,0.00031498,4]
[328446809,1717399850604,-500.0,0.00031499,4]
[328446812,1717399850613,-8431.92528798,0.000315,5]
[328446823,1717399850665,499.77,0.00031,30]
[328447072,1717399852372,11051.41510749,0.00017259,2]
[328448292,1717399864370,207.68727662,0.000185,2]
[328448361,1717399875923,1041.60790739,0.00017259,2]
[328448362,1717399895847,487.68438663,0.00017259,2]
[328448363,1717399899003,157.76857244,0.000198,2]
[328448364,1717399998027,200.0,0.00031854,120]
[328448365,1717400024103,159172.44270735,0.00014,2]
[328448366,1717400136325,427.84896203,0.0003187,120]
[328448367,1717400174654,207.96127058,0.00017259,2]
[328448368,1717400175238,234.83520174,0.00017259,2]
[328448369,1717400186969,3747.52213386,0.0002,2]
[328448370,1717400192702,410.81529252,0.00017259,2]
[328448371,1717400194437,4891.93757754,0.0002,2]
[328448372,1717400202419,1000.0,0.00017259,2]
[328448373,1717400212232,2334.08269721,0.00017259,2]
[328448374,1717400225713,4286.86690961,0.00017259,2]
[328448375,1717400236178,13455.46514452,0.0003,30]
[328448376,1717400269852,199.38036039,0.00017259,2]
[328448377,1717400271158,1803.93057379,0.00017259,2]
[328448378,1717400329060,7534.4655871,0.00017259,2]
[328448379,1717400342678,150.0,0.00019725,2]
[328448380,1717400367995,687.92420239,0.00017259,2]
[328448381,1717400418651,500.0,0.00019451,2]
[328448382,1717400501930,595.0,0.00017259,2]
[328448383,1717400530270,2334.08269721,0.00019451,2]
[328448384,1717400565422,1000.0,0.00019451,2]
[328448385,1717400598268,-1355.72103797,0.0003187,120]
[328448388,1717400753180,3362.99713364,0.00019451,2]
[328448389,1717400776782,487.4956685,0.00017259,2]
[328448392,1717400894272,420.13789376,0.00017259,2]
[328448419,1717401031430,-226.51830624,0.000201,2]
[328448421,1717401031440,-163.26,0.00022533,2]
[328448422,1717401031449,-151.58,0.00024384,2]
[328448423,1717401031458,-155.91607164,0.00025002,2]
[328448424,1717401031468,-151.10478152,0.00025002,2]
[328448425,1717401031477,-150.0,0.00025562,2]
[328448426,1717401031486,-4760.5995565,0.0002559,2]
[328448427,1717401031498,-679.4788,0.0002559,2]
[328448428,1717401031510,-517.3226,0.0002559,2]
[328448429,1717401031599,-897.95,0.0002559,2]
[328448430,1717401031656,-628.45130496,0.0002559,2]
[328448431,1717401031666,-482.64279525,0.00025598,2]
[328448432,1717401031675,-2330.80286085,0.00025599,2]
[328448433,1717401031684,-23839.17363894,0.000256,2]
[328448434,1717401031696,-4340.85330066,0.000256,2]
[328448435,1717401031716,-1935.23226309,0.000256,2]
[328448436,1717401031728,-474.37904849,0.000256,2]
[328448437,1717401031739,-1026.39824093,0.000256,2]
[328448438,1717401031751,-309.20737586,0.000256,2]
[328448439,1717401031765,-53462.0323694,0.000256,2]
[328448440,1717401031774,-151.10478151,0.00025961,2]
[328448441,1717401031784,-460.37,0.00026266,2]
[328448442,1717401031796,-151.10478151,0.0002692,2]
[328448443,1717401031806,-150.0,0.00028115,2]
[328448444,1717401031815,-196.83,0.00028147,2]
[328448445,1717401031825,-250.0,0.00028167,2]
[328448446,1717401031834,-155.91607162,0.000282,2]
[328448447,1717401031843,-1175.22,0.00028204,2]
[328448448,1717401031852,-655.81966789,0.00028348,2]
[328448449,1717401031862,-570.0,0.000284,3]
[328448450,1717401031871,-460.37,0.0002853,2]
[328448451,1717401031880,-4782.01,0.00028557,2]
[328448452,1717401031889,-1000.0,0.00028592,2]
[328448453,1717401031898,-175.73,0.00028684,2]
[328448454,1717401031908,-282.76,0.00028722,2]
[328448455,1717401031917,-250.0,0.00028953,2]
[328448456,1717401031925,-250.0,0.00029077,2]
[328448457,1717401031934,-295.43,0.00029764,2]
[328448458,1717401031943,-295.43,0.00029772,2]
[328448459,1717401031952,-295.43,0.0002978,2]
[328448460,1717401031962,-295.43,0.00029788,2]
[328448461,1717401031971,-295.43,0.00029796,2]
[328448462,1717401031980,-295.43,0.00029804,2]
[328448463,1717401031988,-295.43,0.00029811,2]
[328448464,1717401031997,-295.43,0.00029819,2]
[328448465,1717401032006,-295.43,0.00029827,2]
[328448466,1717401032015,-295.43,0.00029835,2]
[328448467,1717401032024,-295.43,0.00029843,2]
[328448468,1717401032033,-295.43,0.00029851,2]
[328448469,1717401032042,-295.43,0.00029858,2]
[328448470,1717401032051,-295.43,0.00029866,2]
[328448471,1717401032060,-295.43,0.00029874,2]
[328448472,1717401032070,-295.43,0.00029882,2]
[328448473,1717401032079,-295.43,0.0002989,2]
[328448474,1717401032088,-295.43,0.00029898,2]
[328448475,1717401032097,-295.43,0.00029905,2]
[328448476,1717401032106,-295.43,0.00029913,2]
[328448477,1717401032115,-316.90163377,0.00029923,7]
[328448478,1717401032124,-1700.78042384,0.0003,25]
[328448479,1717401032133,-155.0,0.0003,2]
[328448480,1717401032143,-1206.41199006,0.0003,4]
[328448481,1717401032154,-1463.93416588,0.0003,4]
[328448482,1717401032163,-1725.90091348,0.0003,4]
[328448483,1717401032261,-3274.09908652,0.0003,4]
[328448485,1717401032272,-3968.23,0.00030007,2]
[328448487,1717401032281,-546.06531152,0.00030007,15]
[328448488,1717401032290,-358.0,0.00030107,2]
[328448489,1717401032299,-1648.0,0.00030107,2]
[328448490,1717401032308,-440.0,0.00030107,2]
[328448491,1717401032317,-3167.0,0.00030107,2]
[328448493,1717401032327,-2211.252,0.00030107,2]
[328448495,1717401032336,-1470.0,0.00030107,2]
[328448497,1717401032345,-22074.87746497,0.00030107,2]
[328448500,1717401037370,-326.66099057,0.00030107,2]
[328448501,1717401037426,-10228.15692408,0.00030107,2]
[328448502,1717401037537,-1898.09046643,0.00030107,2]
[328448503,1717401037549,-698.3397438,0.00030107,2]
[328448504,1717401037561,-453.03897133,0.00030107,2]
[328448505,1717401037646,-2318.83543882,0.00030107,2]
[328448506,1717401037656,-175.861,0.00030107,2]
[328448507,1717401037666,-5769.0,0.00030107,2]
[328448508,1717401037676,-546.06531143,0.00030362,15]
[328448509,1717401037685,-160.85456813,0.00030634,7]
[328448510,1717401037695,-155.82280475,0.00030702,7]
[328448511,1717401037704,-546.06531143,0.00030717,15]
[328448512,1717401037717,-460.37,0.00030794,2]
[328448513,1717401037727,-157.6292984,0.00030851,7]
[328448514,1717401037737,-196.83,0.00030887,2]
[328448515,1717401037747,-546.06531143,0.00031071,15]
[328448517,1717401037758,-154.04137903,0.00031074,7]
[328448518,1717401037768,-697.36653125,0.0003119,2]
[328448519,1717401037778,-157.6292984,0.000312,7]
[328448520,1717401037788,-154.04137903,0.00031259,7]
[328448521,1717401037799,-157.6292984,0.00031289,7]
[328448522,1717401037809,-1427.5930695,0.00031298,2]
[328448528,1717401040055,-1064.0,0.00030107,2]
[328448529,1717401040065,-1072.4069305,0.00031298,2]
[328448530,1717401040075,-895.58318,0.000313,2]
[328448531,1717401040084,-1742.86,0.0003137,2]
[328448532,1717401040094,-416.39,0.0003137,2]
[328448533,1717401040103,-155.91607162,0.00031398,2]
[328448534,1717401040114,-322.88382591,0.00031398,2]
[328448535,1717401040124,-354.19018218,0.00031398,2]
[328448536,1717401040133,-1232.887,0.00031398,2]
[328448537,1717401040143,-2895.2384,0.000314,2]
[328448538,1717401040152,-500.0,0.000314,2]
[328448539,1717401040161,-157.9575,0.000314,2]